[Event "German Bundesliga 2023-24"]
[Site "Germany"]
[Date "2024.03.16"]
[Round "12.14"]
[White "Thybo, Jesper Sondergaard"]
[Black "Kraus, Tomas"]
[Result "1/2-1/2"]
[ECO "E17"]
[WhiteElo "2522"]
[BlackElo "2491"]
[Annotator "TA"]
[PlyCount "79"]
[EventDate "2023.10.20"]
[EventType "team-tourn"]
[EventCountry "GER"]
[SourceTitle "playchess.com"]
[Source "ChessBase"]
[SourceQuality "1"]
[TimeControl "40/6000+30:3000+30"]

{[%evp 19,79,0,20,8,17,20,53,54,56,53,53,47,53,37,39,54,35,23,11,23,27,17,21,13,10,9,11,14,9,8,10,10,11,8,13,8,10,13,13,8,17,17,6,0,0,0,0,0,0,-8,0,-18,0,0,0,0,0,-10,0,-15,0,0]} 1. d4 {[%emt 0:00:30]} d5 {[%emt 0:00:36]} 2. Nf3 {[%emt 0:00:15]} e6 {[%emt 0:02:32]} 3. g3 {[%emt 0:00:36]} b6 {[%emt 0:00:12]} 4. Bg2 {[%emt 0:01:49]} Bb7 {[%emt 0:00:44]} 5. O-O {[%emt 0:01:12]} Nd7 {[%emt 0:02:29]} 6. b3 {[%emt 0:04:18]} c5 {[%emt 0:13:15]} 7. Bb2 {[%emt 0:02:27]} Ngf6 {[%emt 0:01:21]} 8. Nbd2 {[%emt 0:00:25]} Be7 {[%emt 0:14:01]} 9. c4 {[%emt 0:02:35]} O-O {[%emt 0:01:49]} 10. cxd5 {[%emt 0:11:50]} exd5 {[%emt 0:00:31]} 11. Ne5 {[%emt 0:03:48]} Re8 {[%emt 0:05:29]} 12. Rc1 {[%emt 0:02:45]} Nf8 {[%emt 0:08:34]} 13. Nd3 {[%emt 0:15:33] White is slightly better.} Ne6 {[%emt 0:03:41]} 14. dxc5 {[%emt 0:04:31]} bxc5 {[%emt 0:05:05]} 15. Bxf6 {[%emt 0:01:55]} Bxf6 {[%emt 0:04:06]} 16. Nxc5 {[%emt 0:01:19]} Nxc5 {[%emt 0:02:02]} 17. Rxc5 {[%emt 0:00:10]} Qe7 {[%emt 0:02:52]} 18. Rxd5 {[%emt 0:15:40]} Bxd5 {[%emt 0:03:14]} 19. Bxd5 {[%emt 0:00:02]} Rad8 {[%emt 0:02:07]} 20. e4 {[%emt 0:00:06]} Qb4 {[%emt 0:04:16] The position is equal.} 21. Qc2 {[%emt 0:03:19]} Qc3 {[%emt 0:03:04]} 22. Rc1 {[%emt 0:02:58][%cal Bf1c1,Bc1c2,Bc2d2][%mdl 32]} Rc8 {[%emt 0:04:30]} 23. Nc4 {[%emt 0:01:30]} Qxc2 {[%emt 0:00:34]} 24. Rxc2 {[%emt 0:00:02][%cal Od5f7] [#] Bxf7+! would now be deadly.} Kf8 {[%emt 0:01:10]} 25. Kg2 {[%emt 0:01:09]} Rc7 {[%emt 0:09:29]} 26. f4 {[%emt 0:01:42]} Rd8 {[%emt 0:00:19]} 27. Rd2 {[%emt 0:03:54]} a5 {[%emt 0:02:11]} 28. a4 {[%emt 0:00:50]} (28. Nxa5 $2 {too greedy.} Bc3 29. Nc6 Rxc6 $19) 28... h5 {[%emt 0:03:11]} 29. h3 {[%emt 0:03:55][%cal Og3g4]} (29. Nxa5 $2 {perishes.} Bc3 30. Nb7 Rxb7 $19) 29... Rc5 {[%emt 0:01:28]} 30. Kf3 {[%emt 0:01:27]} g6 {[%emt 0:02:33]} 31. Rd3 {[%emt 0:03:02]} Kg7 {[%emt 0:00:42]} 32. Ke2 {[%emt 0:01:35]} Be7 {[%emt 0:02:27]} 33. Rf3 {[%emt 0:05:30]} f5 {[%emt 0:01:21]} 34. Re3 {[%emt 0:01:29]} Bf6 {[%emt 0:00:51]} 35. Kf3 {[%emt 0:00:26]} fxe4+ {[%emt 0:01:02]} 36. Bxe4 {[%emt 0:00:32]} Rd1 {[%emt 0:01:14]} 37. Ke2 {[%emt 0:03:19]} Rd4 {[%emt 0:01:15]} 38. g4 {[%emt 0:03:04]} hxg4 {[%emt 0:00:05]} 39. hxg4 {[%emt 0:00:03]} g5 {[%emt 0:01:02]} 40. f5 {[%emt 0:01:18] Weighted Error Value: White=0.03 (flawless) /Black=0.04 (flawless) .  Inaccurate:     	---       	Black=1      OK:         	White=11    	Black=15     Best:        	White=2     	---} 1/2-1/2

[Event "German Bundesliga 2023-24"]
[Site "Germany"]
[Date "2024.03.16"]
[Round "12.14"]
[White "Zysk, Robert"]
[Black "Hausrath, Daniel"]
[Result "1/2-1/2"]
[ECO "D56"]
[WhiteElo "2388"]
[BlackElo "2462"]
[Annotator "TA"]
[PlyCount "44"]
[EventDate "2023.10.20"]
[EventType "team-tourn"]
[EventCountry "GER"]
[SourceTitle "playchess.com"]
[Source "ChessBase"]
[SourceQuality "1"]
[TimeControl "40/6000+30:3000+30"]

{[%evp 26,44,6,0,0,0,0,0,0,0,0,0,0,0,0,0,0,0,0,0,10]} 1. d4 {[%emt 0:00:06]} d5 {[%emt 0:00:14]} 2. c4 {[%emt 0:00:54]} e6 {[%emt 0:00:07]} 3. Nc3 {[%emt 0:00:38]} Be7 {[%emt 0:00:26]} 4. Nf3 {[%emt 0:00:23]} Nf6 {[%emt 0:00:06]} 5. Bg5 {[%emt 0:02:02]} O-O {[%emt 0:00:37]} 6. e3 {[%emt 0:00:46]} h6 {[%emt 0:00:47]} 7. Bh4 {[%emt 0:00:25]} Ne4 {[%emt 0:01:46]} 8. Bxe7 {[%emt 0:00:46]} Qxe7 {[%emt 0:00:02]} 9. Qc2 {[%emt 0:11:11]} Nxc3 {[%emt 0:11:08]} 10. Qxc3 {[%emt 0:03:14]} c6 {[%emt 0:04:01]} 11. Bd3 {[%emt 0:04:19]} dxc4 {[%emt 0:07:57]} 12. Bxc4 {[%emt 0:00:42]} Nd7 {[%emt 0:06:23]} 13. O-O {[%emt 0:00:15]} b6 {[%emt 0:02:10]} 14. Rac1 {[%emt 0:21:45] The position is equal.} Bb7 {[%emt 0:02:59]} 15. Be2 {[%emt 0:00:14]} a5 {[%emt 0:08:26]} 16. Rfd1 {[%emt 0:10:39]} Rfd8 {[%emt 0:05:47]} 17. a3 {[%emt 0:06:21]} c5 {[%emt 0:09:20]} 18. h3 {[%emt 0:05:27]} Rac8 {[%emt 0:09:52]} 19. dxc5 {[%emt 0:03:40]} Rxc5 {[%emt 0:01:34]} 20. Qe1 {[%emt 0:02:43]} Rxc1 {[%emt 0:01:05]} 21. Rxc1 {[%emt 0:00:10]} Nc5 {[%emt 0:00:13]} 22. Qc3 {[%emt 0:04:29]} a4 {[%emt 0:14:08] An uneventful encounter.   Weighted Error Value: White=0.01 (flawless) /Black=0.00 (flawless) .  OK:         	White=4     	Black=5} 1/2-1/2

[Event "German Bundesliga 2023-24"]
[Site "Germany"]
[Date "2024.03.16"]
[Round "12.14"]
[White "von Mettenheim, Johannes"]
[Black "Heimann, Andreas"]
[Result "1/2-1/2"]
[ECO "E11"]
[WhiteElo "2284"]
[BlackElo "2552"]
[Annotator "RC"]
[PlyCount "72"]
[EventDate "2023.10.20"]
[EventType "team-tourn"]
[EventCountry "GER"]
[SourceTitle "playchess.com"]
[Source "ChessBase"]
[SourceQuality "1"]
[TimeControl "40/6000+30:3000+30"]

1. d4 {[%emt 0:00:03]} Nf6 {[%emt 0:00:06]} 2. c4 {[%emt 0:00:06]} e6 {[%emt 0:00:05]} 3. Nf3 {[%emt 0:00:04]} d5 {[%emt 0:00:15]} 4. g3 {[%emt 0:00:06]} Bb4+ {[%emt 0:00:24]} 5. Bd2 {[%emt 0:00:08]} Be7 {[%emt 0:00:05]} 6. Bg2 {[%emt 0:00:05]} O-O {[%emt 0:00:04]} 7. O-O {[%emt 0:00:13]} c6 {[%emt 0:00:14]} 8. Qb3 {[%emt 0:00:35]} b6 {[%emt 0:02:10]} 9. Nc3 {[%emt 0:06:12]} Ba6 {[%emt 0:07:46]} 10. cxd5 {[%emt 0:02:39]} cxd5 {[%emt 0:00:05]} 11. Rfc1 {[%emt 0:05:53]} Nc6 {[%emt 0:14:15]} 12. Qa4 {[%emt 0:08:58]} Bb7 {[%emt 0:00:34]} 13. Bf4 {[%emt 0:19:11]} a6 {[%emt 0:03:12]} 14. Ne5 {[%emt 0:06:13]} b5 {[%emt 0:00:17]} 15. Nxc6 {[%emt 0:01:32]} Bxc6 {[%emt 0:00:25]} 16. Qd1 {[%emt 0:15:36]} Qb6 {[%emt 0:02:01]} 17. h3 {[%emt 0:00:37]} Rac8 {[%emt 0:02:29]} 18. Be3 {[%emt 0:01:38]} Qb7 {[%emt 0:12:05]} 19. Nb1 {[%emt 0:02:49]} a5 {[%emt 0:03:44]} 20. Nd2 {[%emt 0:00:35]} a4 {[%emt 0:00:05]} 21. Nf3 {[%emt 0:02:34]} b4 {[%emt 0:00:35]} 22. Ne5 {[%emt 0:04:30]} Bb5 {[%emt 0:00:19]} 23. Rxc8 {[%emt 0:08:34]} Rxc8 {[%emt 0:00:26]} 24. Rc1 {[%emt 0:00:07]} Rxc1 {[%emt 0:15:48]} 25. Bxc1 {[%emt 0:00:07]} Ne4 {[%emt 0:00:06]} 26. e3 {[%emt 0:05:58]} Qc8 {[%emt 0:01:39]} 27. Bf1 {[%emt 0:04:52]} Bxf1 {[%emt 0:00:41]} 28. Kxf1 {[%emt 0:00:18]} a3 {[%emt 0:07:22]} 29. Kg2 {[%emt 0:01:33]} b3 {[%emt 0:02:34]} 30. Qxb3 {[%emt 0:03:20]} Nxf2 {[%emt 0:08:29]} 31. Kxf2 {[%emt 0:00:09]} Qxc1 {[%emt 0:00:05]} 32. bxa3 {[%emt 0:04:21]} Bd6 {[%emt 0:10:15]} 33. Qb7 {[%emt 0:01:24]} Qc2+ {[%emt 0:03:39]} 34. Ke1 {[%emt 0:00:24]} Qc1+ {[%emt 0:00:05]} 35. Ke2 {[%emt 0:00:38]} Qc2+ {[%emt 0:00:05]} 36. Ke1 {[%emt 0:00:06]} Qc1+ {[%emt 0:00:36]} 1/2-1/2

[Event "German Bundesliga 2023-24"]
[Site "Germany"]
[Date "2024.03.16"]
[Round "12.15"]
[White "Ferreira, Jorge Viterbo"]
[Black "Fromm, Marius"]
[Result "0-1"]
[ECO "A20"]
[WhiteElo "2525"]
[BlackElo "2435"]
[Annotator "TA"]
[PlyCount "100"]
[EventDate "2023.10.20"]
[EventType "team-tourn"]
[EventCountry "GER"]
[SourceTitle "playchess.com"]
[Source "ChessBase"]
[SourceQuality "1"]
[TimeControl "40/6000+30:3000+30"]

{[%evp 28,99,0,0,0,-27,-20,-20,-20,-20,-20,-20,-20,-20,-14,-57,-48,-79,-80,-82,-63,-106,-89,-112,-105,-137,-130,-128,-124,-140,-132,-154,-143,-150,-152,-202,-154,-225,-225,-209,-104,-126,-102,-191,-153,-290,-158,-681,-682,-1062,-1083,-1094,-1083,-1531,-1356,-1286,-1353,-1475,-1357,-1319,-1163,-2557,-2390,-2490,-2562,-2628,-2818,-29989,-29990,-29992,-29987,-29998,-29999,-29999]} 1. c4 {[%emt 0:00:15]} e5 {[%emt 0:00:06]} 2. g3 {[%emt 0:00:30]} c6 {[%emt 0:00:30]} 3. d4 {[%emt 0:00:30]} Bb4+ {[%emt 0:00:30]} 4. Bd2 {[%emt 0:00:30]} Bxd2+ {[%emt 0:00:30]} 5. Qxd2 {[%emt 0:00:30]} d6 {[%emt 0:00:30]} 6. Nc3 {[%emt 0:00:30]} Nf6 {[%emt 0:00:30]} 7. Bg2 {[%emt 0:00:30] A20: English Opening: 1...e5.} Nbd7 {[%emt 0:00:30]} 8. e3 {[%emt 0:00:30]} O-O {[%emt 0:00:30]} 9. Nge2 {[%emt 0:00:30]} Re8 {[%emt 0:00:30]} 10. Qc2 $146 {[%emt 0:00:30]} ({Predecessor:} 10. O-O e4 11. f3 exf3 12. Rxf3 Nb6 13. b3 Bg4 14. Rf4 d5 15. cxd5 Bxe2 16. Qxe2 Nbxd5 17. Nxd5 Nxd5 {½-½ Puranik,A (2597)-Adhiban,B (2654) Moscow Aeroflot op-A 2020 (3)}) 10... Qe7 {[%emt 0:00:30]} 11. b3 {[%emt 0:00:30]} e4 {[%emt 0:00:30]} 12. h3 {[%emt 0:00:30]} Nf8 {[%emt 0:00:30]} 13. a4 {[%emt 0:00:30]} Ng6 {[%emt 0:00:30]} 14. a5 {[%emt 0:00:30]} Bd7 {[%emt 0:00:30]} 15. O-O {[%emt 0:00:30]} h5 {[%emt 0:00:30]} 16. Nf4 {[%emt 0:00:30]} Nxf4 {[%emt 0:00:30]} 17. exf4 {[%emt 0:00:30]} Bf5 {[%emt 0:00:30]} 18. Kh2 {[%emt 0:00:30]} d5 {[%emt 0:00:30]} 19. Nd1 {[%emt 0:00:30]} Qd6 {[%emt 0:00:30]} 20. Ne3 {[%emt 0:00:30]} Be6 {[%emt 0:00:30]} 21. Qc3 {[%emt 0:00:30]} h4 {[%emt 0:00:30]} 22. Rfd1 {[%emt 0:00:30]} g6 {[%emt 0:00:30]} 23. c5 {[%emt 0:00:30]} Qc7 {[%emt 0:00:30]} 24. a6 {[%emt 0:00:30]} b6 {[%emt 0:00:30]} 25. cxb6 {[%emt 0:00:30]} Qxb6 {[%emt 0:00:30]} 26. Nc2 {[%emt 0:00:30]} Rab8 {[%emt 0:00:30]} 27. b4 {[%emt 0:00:30]} Kg7 {[%emt 0:00:30]} 28. Kg1 {[%emt 0:00:30]} Qc7 {[%emt 0:00:30]} 29. Qe3 {[%emt 0:00:30]} Nh5 {[%emt 0:00:30]} 30. f5 {[%emt 0:00:30] [#]} Bd7 $1 {[%emt 0:00:30]} (30... Bxf5 31. g4 $14) 31. Ra3 {[%emt 0:00:30]} (31. fxg6 $17 {was called for.} Kxg6 (31... fxg6 32. Ra3 $17) (31... hxg3 32. gxf7 gxf2+ 33. Qxf2 $17) 32. g4) 31... Rh8 {[%emt 0:00:30]} (31... gxf5 $2 32. Qg5+ (32. gxh4 $2 f4 $19) 32... Kf8 33. Qxh4 $18 (33. Qxh5 Kg7 $18)) (31... Bxf5 32. g4 Bxg4 33. hxg4 $14) (31... hxg3 32. fxg3 Qd6 (32... gxf5 $2 33. Qg5+ Kf8 34. Qxh5 $18) (32... Bxf5 33. g4 $11) 33. Qg5 $17) 32. fxg6 {[%emt 0:00:30] [#]} (32. Qg5 $17) 32... f5 $1 $19 {[%emt 0:00:30]} (32... Kxg6 33. f3 Bxh3 (33... Qxg3 34. fxe4 Rhe8 35. Qxg3+ Nxg3 36. exd5 $15) 34. fxe4 Bxg2 (34... Qxg3 $2 35. Qxg3+ Nxg3 36. Bxh3 $18) 35. Kxg2 $17) (32... fxg6 33. Qg5 $15) 33. Qg5 {[%emt 0:00:30]} Nf6 {[%emt 0:00:30]} (33... Qd6 $19 {White must now prevent ...Rbf8.} 34. g4 (34. Qxh4 $2 {is the wrong capture.} Kxg6 35. Kf1 Rbg8 $19) 34... Nf4 (34... Qxg6 $2 35. Qxg6+ Kxg6 36. gxh5+ $18)) 34. Rc1 {[%emt 0:00:30]} (34. gxh4 $2 {too greedy.} Rh5 35. Qd2 f4 $19 (35... Rxh4 $2 36. Ne1 $19) (35... Kxg6 $2 36. Rg3+ Kf7 37. Rg5 $19)) 34... Rh5 {[%emt 0:00:30]} 35. Qd2 {[%emt 0:00:30]} (35. Qf4 $17 Qxf4 36. gxf4) 35... Kxg6 {[%emt 0:00:30]} 36. Bf1 {[%emt 0:00:30]} (36. Rc3 $17) 36... Rg5 {[%emt 0:00:30]} (36... hxg3 $19 37. Rxg3+ Kf7) 37. Kh2 $2 {[%emt 0:00:30]} (37. Bg2 $17) 37... Nh5 $19 {[%emt 0:00:30]} 38. Qe1 {[%emt 0:00:30]} hxg3+ {[%emt 0:00:30]} 39. fxg3 {[%emt 0:00:30]} f4 {[%emt 0:00:30]} 40. g4 {[%emt 0:00:30]} f3+ {[%emt 0:00:30]} 41. Kg1 {[%emt 0:50:30]} Bxg4 {[%emt 0:50:30]} 42. h4 {[%emt 0:00:30]} Rf5 {[%emt 0:00:30]} 43. Qf2 {[%emt 0:00:30]} Rg8 {[%emt 0:00:30]} 44. Ne3 {[%emt 0:00:30]} Kh7 {[%emt 0:00:30]} 45. Kh1 {[%emt 0:00:30]} Ng3+ {[%emt 0:00:30]} 46. Kg1 {[%emt 0:00:30]} Rh5 {[%emt 0:00:30]} 47. Qh2 {[%emt 0:00:30]} Ne2+ {[%emt 0:00:30]} 48. Bxe2 {[%emt 0:00:30]} Bd7+ {[%emt 0:00:30]} 49. Kh1 {[%emt 0:00:30]} Qxh2+ {[%emt 0:00:30]} 50. Kxh2 {[%emt 0:00:30]} Rxh4# {[%emt 0:00:30]} 0-1